Cogmind - Beta 17.1 @@@ ROGUE MODE // 2026.08.26 @ 00:45:13 Player: 4R-ZE3 Result: Destroyed by AP7-3 with Enhanced Gamma Rifle Performance ------------- Evolutions (8) 4000 Regions Visited (27) 5400 Robots Destroyed (343) 1715 Value Destroyed (18909) 18909 Prototype IDs (58) 1160 Alien Tech Used (5) 1000 Bonus (7967) 7967 TOTAL SCORE: 40151 Bonus ------- High Alert Combat Kills 1385 Follower Combat Kills 2041 Registered with UFD 300 Met Optimus in HQ 500 Met Zhirov 300 Built Enhanced Grunts 300 A7 Reached Mainframe 300 Met R17 at Cetus 500 Met R17 at Research 2000 Scanned by Researcher 500 Friendly Fire -159 Cogmind --------- Core Integrity 0/1450 Matter 203/300 Energy 99/100 System Corruption 48% Temperature Cool (9) Movement Core (50) Location -2/Protoforge Parts ------- > --- POWER (3) -------- (None) > --- PROPULSION (8) --- (None) > --- UTILITY (10) ----- (None) > --- WEAPON (2) ------- (None) > --- INVENTORY (5) ---- Flexi-carbon Leg Deep Structural Scanner Quantum Capacitor Supercharged TR Peak State ------------ > --- POWER ------------ Vortex Chain Reactor Matter Drive > --- PROPULSION ------- Biometal Heavy Treads High-density Centrium Heavy Treads High-density Centrium Heavy Treads High-density Centrium Heavy Treads > --- UTILITY ---------- Experimental Power Amplifier Huge Storage Unit Advanced Signal Interpreter Quantum Capacitor Centrium Medium Armor Plating Centrium Medium Armor Plating Graphene Brace Experimental EM Shield AEGIS Remote Shield > --- WEAPON ----------- Gamma Rifle Cooled Nova Cannon > --- INVENTORY -------- Cooled Antimatter Reactor Cooled Antimatter Reactor High-density Centrium Heavy Treads Flexi-carbon Leg Advanced Heat Sink Advanced Coolant Injector Deep Structural Scanner Advanced Sensor Array Quantum Capacitor Dimensional Node Initializer Supercharged TR Improved Potential Cannon [Rating: 220] Favorites ----------- Power Cooled Antimatter Reactor Engine Deuterium Engine Power Core Fission Core Reactor Cooled Antimatter Reactor Propulsion Light Treads Treads Light Treads Leg Improved VSS Leg Wheel Wheel Hover Unit Gravmag System Flight Unit Improved Flight Unit Utility Huge Storage Unit Device Graphene Brace Storage Huge Storage Unit Processor Advanced Signal Interpreter Hackware Hacking Suite Protection Centrium Medium Armor Plating Artifact Phase Redirector Weapon Advanced Beam Rifle Energy Gun Advanced Beam Rifle Energy Cannon Particle Cannon Ballistic Gun Assault Rifle Ballistic Cannon Bore Cannon Launcher Long-range Missile Launcher Slashing Weapon Greatsword Special Melee Weapon Datajack Build | -11 -10 -10 -9 -9 -9 -8 -8 -8 -8 -8 -6 -6 -6 -6 -6 -6 -5 -5 -5 -5 -4 -4 -3 -3 -2 -2 -2 ------- Run | Yrd Mat Min Mat Min Exi Min Mat Sto Rec Scr Fac Was Fac Ext Cet Arc Fac Upp Upp Zhi Pro Fac Res Tes Res Qua Frg Slots Evolved 16 | . . . 2 . . . 2 . . . 4 . . . . . 2 . . . . 2 2 . 2 . . Power 2 | . . . . . . . . . . . . . . . . . . . . . . 1 1 . . . . Propulsion 6 | . . . 1 . . . 1 . . . 2 . . . . . 1 . . . . 1 . . . . . Utility 8 | . . . 1 . . . 1 . . . 2 . . . . . 1 . . . . . 1 . 2 . . Weapon . | . . . . . . . . . . . . . . . . . . . . . . . . . . . . Parts Attached 264 | 6 7 . 9 3 . 8 22 8 1 6 14 1 3 19 11 10 12 . . 5 1 21 13 34 11 29 10 Power 30 | 1 . . 1 . . 1 1 . 1 . 1 1 1 . 1 . . . . 1 . 4 2 5 4 2 3 Engine 5 | 1 . . 1 . . 1 1 . 1 . . . . . . . . . . . . . . . . . . Core 4 | . . . . . . . . . . . 1 1 . . . . . . . . . 2 . . . . . Reactor 21 | . . . . . . . . . . . . . 1 . 1 . . . . 1 . 2 2 5 4 2 3 Propulsion 100 | 2 . . 4 3 . 3 9 3 . 3 3 . 1 10 4 6 3 . . 3 . 11 5 8 3 14 2 Treads 66 | 2 . . 4 3 . 3 8 3 . . . . . 10 4 . 1 . . . . 1 3 7 3 12 2 Leg 9 | . . . . . . . . . . . . . . . . . 1 . . . . 7 1 . . . . Wheel 5 | . . . . . . . . . . . . . . . . . . . . . . 3 1 1 . . . Hover 7 | . . . . . . . . . . . . . . . . 6 1 . . . . . . . . . . Flight 13 | . . . . . . . 1 . . 3 3 . 1 . . . . . . 3 . . . . . 2 . Utility 92 | 1 4 . 3 . . 3 9 2 . 1 9 . 1 4 3 4 5 . . 1 . 5 5 12 4 12 4 Device 52 | . 2 . 1 . . 3 3 . . 1 4 . . 2 1 3 2 . . . . 4 5 8 4 6 3 Storage 10 | 1 2 . 1 . . . 1 . . . 1 . . . . . 1 . . . . 1 . 2 . . . Processor 4 | . . . . . . . . . . . 1 . 1 . . . 1 . . . . . . . . 1 . Hackware 6 | . . . . . . . . 2 . . 3 . . . . 1 . . . . . . . . . . . Protection 19 | . . . 1 . . . 5 . . . . . . 2 2 . 1 . . 1 . . . 2 . 4 1 Artifact 1 | . . . . . . . . . . . . . . . . . . . . . . . . . . 1 . Weapon 42 | 2 3 . 1 . . 1 3 3 . 2 1 . . 5 3 . 4 . . . 1 1 1 9 . 1 1 Energy Gun 15 | 1 . . . . . . 3 2 . 1 . . . . 2 . . . . . . 1 . 4 . . 1 Energy Cannon 17 | . 2 . 1 . . . . 1 . . . . . 1 1 . 3 . . . 1 . 1 5 . 1 . Ballistic Gun 1 | 1 . . . . . . . . . . . . . . . . . . . . . . . . . . . Ballistic Cannon 4 | . . . . . . . . . . . . . . 4 . . . . . . . . . . . . . Launcher 3 | . 1 . . . . 1 . . . . . . . . . . 1 . . . . . . . . . . Special Weapon . | . . . . . . . . . . . . . . . . . . . . . . . . . . . . Impact Weapon . | . . . . . . . . . . . . . . . . . . . . . . . . . . . . Slashing Weapon 1 | . . . . . . . . . . 1 . . . . . . . . . . . . . . . . . Piercing Weapon . | . . . . . . . . . . . . . . . . . . . . . . . . . . . . Special Melee Weapon 1 | . . . . . . . . . . . 1 . . . . . . . . . . . . . . . . Unidentified Prototypes 45 | . . . 1 . . . 2 2 . . . 1 1 . 5 . 1 . . 4 . . . 17 . 8 3 Corrupted Parts 2 | . . . . . . . . . . . . . . . 1 . . . . . . . . . . 1 . System Corruption 16 | . . . . . . . . . . . . . . . 8 . . . . . . . . . . 8 . Parts Lost 75 | . . . 3 1 . 5 4 . 1 . . 1 . 2 1 . 3 . . . 1 17 . 13 1 2 20 Power 12 | . . . . . . . 1 . 1 . . . . . . . . . . . . 3 . 3 . 1 3 Propulsion 29 | . . . 2 . . 3 1 . . . . 1 . 1 . . 3 . . . . 5 . 6 . 1 6 Utility 25 | . . . 1 . . 2 2 . . . . . . 1 1 . . . . . 1 5 . 2 1 . 9 Weapon 9 | . . . . 1 . . . . . . . . . . . . . . . . . 4 . 2 . . 2 Highest Loss Streak 9 | . . . 1 1 . 2 1 . 1 . . 1 . 2 1 . 1 . . . 1 9 . 3 1 1 7 To Critical Strikes . | . . . . . . . . . . . . . . . . . . . . . . . . . . . . Average Backups 16 | 1 7 10 13 14 15 14 19 22 22 22 9 8 8 13 12 11 13 15 15 14 14 15 19 20 22 22 14 Power 1 | . 1 1 1 1 1 . . 1 . . . . . 1 1 1 1 3 3 2 2 1 2 2 3 2 1 Propulsion 2 | 1 . 1 2 4 5 4 5 8 6 5 1 1 . 6 4 2 1 . . . . 1 . 1 . 1 1 Utility 7 | . . 2 3 4 5 5 6 7 9 11 6 6 5 4 4 6 6 8 8 8 7 8 12 12 12 12 7 Weapon 3 | . 5 5 5 4 4 4 7 6 6 5 1 1 1 2 2 2 3 4 4 3 4 2 2 2 2 2 1 Tool/Special . | . . . . . . . . . . . . . . . . . . . . . . . . . . . . Unused Backups 50 | . 2 . 3 1 . . 1 4 2 1 4 . 1 1 5 1 2 . 1 1 1 . 1 4 4 7 3 Power 8 | . . . 2 . . . . . . . . . . . 1 . . . . 1 . . 1 . 2 1 . Propulsion 11 | . 2 . . . . . . 2 2 . . . . 1 1 1 . . . . . . . . . 1 1 Utility 25 | . . . 1 . . . . 1 . 1 3 . 1 . 2 . 2 . 1 . 1 . . 4 2 4 2 Weapon 5 | . . . . 1 . . 1 1 . . 1 . . . 1 . . . . . . . . . . . . Tool/Special 1 | . . . . . . . . . . . . . . . . . . . . . . . . . . 1 . Average Slot Usage (%) 91 | . 98 100 97 99 100 95 95 98 99 97 91 90 91 96 86 81 90 82 82 73 85 85 98 85 87 89 67 Engine 4 | . 14 14 11 11 11 10 9 8 8 9 1 . . . . . . . . . . . . . . . . Reactor 4 | . . . . . . . . . . . . . 5 6 6 6 5 5 5 5 4 6 6 10 13 12 9 Treads 24 | . 28 28 32 33 33 31 35 35 36 35 1 . . 33 27 16 4 11 11 11 11 6 9 19 28 28 16 Leg 1 | . . . . . . . . . . . . . . . . . 2 5 5 2 . 17 11 . . . . Wheel 1 | . . . . . . . . . . . . . . . . . . . . . . 4 16 5 . . . Hover 1 | . . . . . . . . . . . . . . . . 5 27 5 5 2 . . . . . . . Flight 2 | . . . . . . . . . . . 37 38 39 4 . . . . . 7 17 3 . . . . . Device 15 | . 12 14 14 22 22 19 10 9 9 9 12 13 13 6 6 10 16 17 17 16 10 9 18 18 26 29 24 Storage 7 | . 14 14 11 11 11 11 9 9 9 8 6 6 6 8 6 6 5 5 5 5 5 5 4 4 4 4 3 Processor 2 | . . . . . . . . . . . 5 6 6 6 6 6 5 5 5 5 5 5 4 4 4 4 3 Hackware 7 | . . . . . . . . 9 18 18 13 13 13 13 13 13 11 11 11 11 11 10 9 6 . . . Protection 1 | . . . 6 . . . 12 8 . . . . . 3 5 1 . . . . 3 2 . 1 1 . 2 Energy Gun 4 | . . . . . . . 17 17 18 14 . . . . 10 13 . . . . . 3 1 . . . . Energy Cannon 7 | . 24 28 21 21 22 20 . . . . . . . . 1 . 7 7 9 1 10 6 7 8 8 7 4 Peak Build Rating 220 | 6 12 12 17 15 15 20 38 41 39 39 55 55 59 60 116 116 113 109 109 118 127 134 122 156 174 209 220 Average Rating 84 | 4 9 12 14 14 15 18 30 39 38 37 51 52 57 48 92 107 93 107 108 101 118 108 114 135 164 186 192 On Entrance 69 | . 6 12 12 15 15 15 20 38 39 37 39 55 47 59 50 116 83 109 107 109 118 127 90 118 137 169 206 Avg Prop Armor Cover (%) 10 | . . . . . . . . . . 1 . 4 4 . . 13 7 5 5 5 2 8 17 16 . . 6 Naked Turns 47 | . . . . . . . . . . . . . . . . . . . . . . . . . . . 47 Heaviest Build 193 | 14 34 34 40 38 38 38 109 107 95 96 96 25 30 62 58 58 62 61 61 53 66 142 153 171 184 186 193 Greatest Support 360 | 40 40 40 60 60 60 60 82 82 80 80 80 31 33 133 240 240 160 160 160 160 160 183 40 261 252 330 360 Greatest Overweight (x) 13 | . . . . . . . 1 2 1 2 1 . . 2 . 1 . . . . . 13 5 5 . 1 . Average Overweight (x) . | . . . . . . . . 1 1 . . . . . . . . . . . . 1 3 1 . . . Largest Inventory Capacity 25 | 8 15 15 15 15 15 15 25 25 25 25 25 10 10 15 15 15 15 15 15 15 15 25 25 25 25 25 25 Average Capacity 19 | 6 9 15 15 15 15 15 21 25 25 24 10 10 10 14 15 15 15 15 15 15 15 24 25 25 25 25 24 Most Carried 25 | 3 10 11 15 15 15 15 25 25 25 25 25 9 10 15 15 15 15 15 15 15 15 21 25 25 25 25 25 Average Carried 18 | 2 7 10 13 14 15 14 20 24 24 23 10 9 9 14 14 14 14 15 14 14 14 15 20 24 24 24 17 Final Capacity 25 | 8 15 15 15 15 15 15 25 25 25 25 10 10 10 15 15 15 15 15 15 15 15 25 25 25 25 25 5 Final Carried 25 | 3 10 11 15 15 15 14 25 25 24 25 9 9 10 15 15 15 15 15 15 15 14 13 25 25 25 25 5 Class Distribution -------------------- 42% | Scavenger-Mutant 19% | Hacker-Mutant 17% | Mutant 6% | Skirmisher 4% | Scavenger-Skirmisher 3% | Hacker-Scout Dominant Class ---------------- Mutant | -10/Materials Mutant | -10/Mines Scavenger-Mutant | -9/Materials Scavenger-Mutant | -9/Mines Scavenger-Mutant | -9/Exiles Scavenger-Mutant | -8/Mines Mutant | -8/Materials Hacker-Mutant | -8/Storage Hacker-Mutant | -8/Recycling Hacker-Mutant | -8/Scraptown Hacker-Scout | -6/Factory Hacker-Scout | -6/Waste Hacker-Scout | -6/Factory Scavenger-Mutant | -6/Extension Scavenger-Mutant | -6/Cetus Scavenger-Mutant | -6/Archives Scavenger-Scout | -5/Factory Scavenger-Skirmisher | -5/Upper Caves Scavenger-Skirmisher | -5/Upper Caves Scavenger-Mutant | -5/Zhirov Scavenger-Mutant | -4/Proximity Caves Scavenger-Mutant | -4/Factory Scavenger-Mutant | -3/Research Scavenger-Mutant | -3/Testing Scavenger-Mutant | -2/Research Skirmisher | -2/Quarantine Scavenger-Mutant | -2/Protoforge Resources | -11 -10 -10 -9 -9 -9 -8 -8 -8 -8 -8 -6 -6 -6 -6 -6 -6 -5 -5 -5 -5 -4 -4 -3 -3 -2 -2 -2 ----------- Run | Yrd Mat Min Mat Min Exi Min Mat Sto Rec Scr Fac Was Fac Ext Cet Arc Fac Upp Upp Zhi Pro Fac Res Tes Res Qua Frg Matter Collected 5640 | 259 149 9 100 70 . 182 260 190 10 130 134 . 53 665 199 126 146 139 . 104 257 303 252 740 176 799 188 Remotely . | . . . . . . . . . . . . . . . . . . . . . . . . . . . . Salvage Created 17440 | . 725 177 697 282 . 503 1276 644 214 . 162 . 53 619 26 309 920 171 . 104 595 1012 368 2363 1021 2508 2691 Parts 817 | . 52 13 43 21 . 27 51 44 20 . 11 . 4 31 . 20 46 5 . . 21 49 9 87 41 126 96 Haulers Intercepted 12 | . 2 . 2 . . . 1 4 . . . . . . . . . . . . . 2 . . 1 . . Recyclers Shooed . | . . . . . . . . . . . . . . . . . . . . . . . . . . . . Parts Field Recycled . | . . . . . . . . . . . . . . . . . . . . . . . . . . . . Retrieved Matter . | . . . . . . . . . . . . . . . . . . . . . . . . . . . . Parts Self-Destructed 20 | . . . . . . . . . . . . . . . . . . 2 . . 18 . . . . . . Prevented . | . . . . . . . . . . . . . . . . . . . . . . . . . . . . Parts Restored . | . . . . . . . . . . . . . . . . . . . . . . . . . . . . Kills | -11 -10 -10 -9 -9 -9 -8 -8 -8 -8 -8 -6 -6 -6 -6 -6 -6 -5 -5 -5 -5 -4 -4 -3 -3 -2 -2 -2 ------- Run | Yrd Mat Min Mat Min Exi Min Mat Sto Rec Scr Fac Was Fac Ext Cet Arc Fac Upp Upp Zhi Pro Fac Res Tes Res Qua Frg Combat Hostiles Destroyed 284 | . 20 6 11 6 . 14 28 13 4 . 2 . . 9 . . 19 7 . . 10 23 4 34 12 27 35 Melee 5 | . . . . . . . . . . . 2 . . 3 . . . . . . . . . . . . . Guns 58 | . 4 . . . . . 24 13 4 . . . . . . . . . . . . 10 1 . . . 2 Cannons 125 | . 15 6 11 4 . 6 . . . . . . . 6 . . 7 1 . . 7 7 2 20 10 7 16 AOE 45 | . . . . 2 . 6 2 . . . . . . . . . 12 6 . . 2 6 . 1 . . 8 Classes Destroyed 22 | . 4 1 3 1 . 1 1 . . . 3 . . 1 . . 1 . . . . 1 . 1 . 1 3 Worker 10 | . . . . . . 1 . 1 . . . . . . . . 4 . . . . 2 . 2 . . . Builder 9 | . . . 1 . . 1 . . . . . . 1 . . . 2 . . . . . 1 2 . 1 . Tunneler 1 | . . . . . . . 1 . . . . . . . . . . . . . . . . . . . . Hauler 12 | . 2 . 2 . . . 1 4 . . . . . . . . . . . . . 2 . . 1 . . Recycler 3 | . . 1 1 . . . . . . . . . . . . . 1 . . . . . . . . . . Mechanic 4 | . . . . . . . . . . . . . . . . . . . . . . 1 1 . . . 2 Operator 14 | . 1 . . . . . 2 . . . 2 . . . . 9 . . . . . . . . . . . Drone 1 | . . . . . . . . . . . 1 . . . . . . . . . . . . . . . . Watcher 5 | . . . . . . . . . . . 2 . 1 1 1 . . . . . . . . . . . . Swarmer 44 | . 9 6 . . . 4 4 7 . . . . . . . . . 3 . . . 9 . 2 . . . Saboteur 1 | . . . . . . . . . . . . . . . . . 1 . . . . . . . . . . Grunt 126 | . 11 . 8 3 . 9 19 2 . . . . . 2 . . 12 4 . . 6 3 3 13 5 11 15 Brawler 8 | . . . . 1 . 1 2 . . . . . . . . . . . . . 1 . . 3 . . . Duelist 5 | . . . 1 . . . . . . . . . . . . . 2 . . . 1 . . . . . 1 Researcher 1 | . . . . . . . . . . . . . . . . . . . . . . . . . . . 1 Sentry 28 | . . . 2 2 . . 3 4 4 . . . . 6 . . . . . . . 2 1 1 1 . 2 Specialist 3 | . . . . . . . . . . . . . . . . . . . . . . . . 3 . . . Hunter 13 | . . . . . . . . . . . . . . 1 . . . . . . 2 2 . 2 . 2 4 Programmer 41 | . . . . . . . . . . . 1 . . . . . 4 . . . . 7 . 10 6 3 10 Quarantine Guard 10 | . . . . . . . . . . . . . . . . . . . . . . . . . . 10 . Decapitator 1 | . . . . . . . . . . . . . . . . . . . . . . . . . . . 1 Executioner 2 | . . . . . . . . . . . . . . . . . . . . . . . . . . . 2 Fortress 1 | . . . . . . . . . . . . . . . . . . . . . . . . . . 1 . Decomposer 2 | . . . . . . . . . . . . . . . . . . 1 . . 1 . . . . . . Savage 1 | . . . . . . . . . . . . . . 1 . . . . . . . . . . . . . Best Kill Streak 14 | . 6 4 3 4 . 5 3 4 2 . 1 . 2 2 1 2 14 7 . . 4 8 3 5 4 4 8 Combat Bots Only 10 | . 6 3 3 4 . 4 3 4 2 . 1 . . 2 . . 10 7 . . 4 7 2 4 4 4 7 Max Kills in Single Turn 5 | . 1 2 1 2 . 2 2 2 1 . 1 . 1 2 1 1 5 3 . . 2 3 1 1 1 2 4 Gunslinging 1 | . . . . . . . . 1 . . . . . . . . . . . . . . . . . . . Exploded 4 | . . . . 2 . 2 2 . . . . . . . . . 4 3 . . 2 3 . 1 . . 4 Melee 1 | . . . . . . . . . . . 1 . . 1 . . . . . . . . . . . . . Uniques/NPCs Destroyed . | . . . . . . . . . . . . . . . . . . . . . . . . . . . . Combat | -11 -10 -10 -9 -9 -9 -8 -8 -8 -8 -8 -6 -6 -6 -6 -6 -6 -5 -5 -5 -5 -4 -4 -3 -3 -2 -2 -2 -------- Run | Yrd Mat Min Mat Min Exi Min Mat Sto Rec Scr Fac Was Fac Ext Cet Arc Fac Upp Upp Zhi Pro Fac Res Tes Res Qua Frg Hostile Shots Fired 2495 | . 53 30 48 19 . 70 165 52 4 . 12 1 . 147 34 28 59 2 . . 76 276 30 447 62 127 753 Missed 707 | . 23 7 10 5 . 20 49 11 1 . 7 . . 60 11 7 22 1 . . 16 81 10 127 11 35 193 Hits 1788 | . 30 23 38 14 . 50 116 41 3 . 5 1 . 87 23 21 37 1 . . 60 195 20 320 51 92 560 Melee 27 | . . . 5 . . 2 2 . . . . 1 . . . . 1 . . . . . . 8 . . 8 Projectile 1761 | . 30 23 33 14 . 48 114 41 3 . 5 . . 87 23 21 36 1 . . 60 195 20 312 51 92 552 AOE 2 | . . . . . . . 1 . . . . . . . . . . . . . . 1 . . . . . Critical Strikes 92 | . . . . . . . 7 1 . . . 1 . 1 5 1 3 . . . 1 9 . 9 5 9 40 Actively Blocked 60 | . . . . . . . . . . . . . . . . . . . . . . . . 9 5 9 37 Part Disruptions 7 | . . . . . . . . . . . . . . . . . . . . . . 1 . 2 2 . 2 Damage Taken 27670 | . 299 188 605 210 . 974 1729 410 44 . 34 50 . 806 670 535 960 18 . . 907 3800 195 3388 542 1545 9761 Core 3037 | . 39 67 80 34 . 184 123 33 . . 5 10 . 100 19 . 95 . . . 68 322 13 377 34 119 1315 Absorbed by Shields 8071 | . . . . . . . . . . . . . . . 98 . . . . . . . 83 2048 565 1077 4200 Reduced by Siege Mode 1308 | . . . . . . . . . . . . . . . . . 30 5 . . 87 231 . 113 11 59 772 Ignored by Resistances 3326 | . . . . . . . . . . . . . . 36 9 . . . . . . 58 70 777 94 322 1960 Core Remaining (%) 70 | 100 . 57 . . . 25 . . . 71 . . . . . 84 . . . . 83 72 . 70 . . . Volleys Fired 1013 | . 42 11 34 7 . 41 87 30 6 . . . . 28 22 24 51 6 1 13 32 69 19 118 59 155 158 Largest 2 | . 2 2 2 2 . 2 2 2 2 . . . . 2 2 2 2 1 1 1 2 2 2 2 1 1 1 Hottest 210 | . 136 136 136 136 . 136 136 122 122 . . . . 96 160 160 188 98 90 98 188 195 203 210 50 88 200 Shots Fired 1509 | . 83 22 68 13 . 69 172 60 12 . . . . 56 32 48 66 7 2 13 49 125 37 208 59 156 152 Gun 453 | . 17 . . . . . 168 60 12 . . . . . 18 48 . . . . . 71 4 18 . . 37 Cannon 1023 | . 65 22 68 12 . 62 2 . . . . . . 56 14 . 61 1 1 13 45 48 33 190 59 156 115 Launcher 33 | . 1 . . 1 . 7 2 . . . . . . . . . 5 6 1 . 4 6 . . . . . Special . | . . . . . . . . . . . . . . . . . . . . . . . . . . . . Kinetic 72 | . 16 . . . . . . . . . . . . 56 . . . . . . . . . . . . . Thermal 1230 | . 66 22 68 12 . 62 170 60 12 . . . . . 32 48 61 1 1 13 45 119 37 170 59 87 85 Explosive 33 | . 1 . . 1 . 7 2 . . . . . . . . . 5 6 1 . 4 6 . . . . . Electromagnetic 174 | . . . . . . . . . . . . . . . . . . . . . . . . 38 . 69 67 Robot Hit Streak 35 | . 7 3 13 13 . 10 13 10 10 . . . . 4 13 5 13 3 . 16 35 10 14 20 21 19 23 Robot Miss Streak 6 | . 4 2 3 1 . 3 3 4 1 . . . . 5 3 4 2 1 . . 1 4 2 6 2 2 5 Penetration Max 1 | . . . . . . . . . . . . . . 1 . . . . . . . . . . . . . Secondary Targets 7 | . . . . . . . 4 1 . . . . . . . . . . . . . 2 . . . . . Max Gunslinging Chain 1 | . . . . . . . 1 1 . . . . . . . . . . . . . 1 . . . . . Capacitor 366 | . . . . . . . . . . . . . . . . . . . . . . . . . 59 156 151 Shots Hit Robots 961 | . 51 8 46 11 . 47 123 36 8 . 7 . 2 31 22 28 34 3 . 13 30 76 25 132 47 88 93 Core Hits 510 | . 25 7 18 9 . 30 48 20 4 . 5 . 2 15 8 20 44 16 . 2 21 46 10 59 18 29 54 Critical Kills 25 | . 1 . . . . . . . . . . . . 6 . . . . . . 1 . 1 9 2 3 2 Critical Parts Destroyed 10 | . . . . . . . . . . . . . . 10 . . . . . . . . . . . . . Critical Strikes 50 | . 1 . . . . . 7 4 . . . . . 17 . . . . . . 1 . 1 11 2 3 3 Burn 11 | . . . . . . . 7 4 . . . . . . . . . . . . . . . . . . . Meltdown 19 | . 1 . . . . . . . . . . . . . . . . . . . 1 . 1 9 2 3 2 Destroy 17 | . . . . . . . . . . . . . . 17 . . . . . . . . . . . . . Corrupt 3 | . . . . . . . . . . . . . . . . . . . . . . . . 2 . . 1 Melee Attacks 54 | . . . . . . . . . . . 36 . 9 9 . . . . . . . . . . . . . Impact . | . . . . . . . . . . . . . . . . . . . . . . . . . . . . Slashing 53 | . . . . . . . . . . . 35 . 9 9 . . . . . . . . . . . . . Piercing . | . . . . . . . . . . . . . . . . . . . . . . . . . . . . Sneak Attacks 4 | . . . . . . . . . . . 3 . 1 . . . . . . . . . . . . . . Combat Hostiles 2 | . . . . . . . . . . . 2 . . . . . . . . . . . . . . . . Follow-up Attacks . | . . . . . . . . . . . . . . . . . . . . . . . . . . . . Damage Inflicted 41887 | . 1048 243 1013 427 . 1371 2685 786 176 . 530 . 164 1070 631 986 2846 691 . 477 1743 4354 858 5762 2304 3523 8199 Guns 7292 | . 143 . . . . . 2418 786 176 . . . . . 283 986 . . . . . 1349 116 316 . . 719 Cannons 24429 | . 905 243 1007 240 . 937 41 . . . . . . 795 348 . 1346 38 . 477 960 1487 742 4917 2304 3456 4186 Explosions 9190 | . . . . 187 . 433 226 . . . . . . . . . 1500 653 . . 783 1518 . 529 . 67 3294 Melee 969 | . . . . . . . . . . . 530 . 164 275 . . . . . . . . . . . . . Ramming 7 | . . . 6 . . 1 . . . . . . . . . . . . . . . . . . . . . Kinetic 926 | . 131 . . . . . . . . . . . . 795 . . . . . . . . . . . . . Thermal 30562 | . 917 243 1007 240 . 937 2459 786 176 . . . . . 631 986 1346 38 . 477 960 3065 858 4854 2304 1626 6652 Explosive 5226 | . . . . 187 . 433 226 . . . . . . . . . 1500 653 . . 783 1289 . 155 . . . Electromagnetic 4197 | . . . . . . . . . . . . . . . . . . . . . . . . 753 . 1897 1547 Impact . | . . . . . . . . . . . . . . . . . . . . . . . . . . . . Slashing 969 | . . . . . . . . . . . 530 . 164 275 . . . . . . . . . . . . . Piercing . | . . . . . . . . . . . . . . . . . . . . . . . . . . . . Highest Corruption 47 | . 1 1 . . . 3 . . . . . . . . 8 8 5 5 5 5 5 15 . 12 11 21 47 Average Corruption 12 | . 1 1 . . . 3 . . . . . . . . 8 5 4 5 5 5 5 13 . 5 6 19 32 Corruption Purged 23 | . . . . . . . . . . . . . . . . 8 . . . . . . . 15 . . . Corruption Blocked . | . . . . . . . . . . . . . . . . . . . . . . . . . . . . Effects 363 | . . 9 . . . 10 . . . . . . . . 10 6 5 11 5 8 12 18 . 49 9 114 97 Message Errors 81 | . . 4 . . . 3 . . . . . . . . 1 2 . 2 . 4 2 5 . 9 2 29 18 Matter Fused 83 | . . 1 . . . . . . . . . . . . 6 1 1 2 . 1 5 9 . 10 4 27 16 Heat Flow Errors 38 | . . . . . . 1 . . . . . . . . . 2 1 3 . . 1 1 . 5 1 12 11 Energy Discharges 32 | . . 3 . . . . . . . . . . . . 1 1 . . 2 1 3 1 . 8 . 10 2 Parts Rejected 7 | . . . . . . 1 . . . . . . . . . . . . . . 1 . . . 1 2 2 Parts Fused 5 | . . . . . . 1 . . . . . . . . . . . . . . . . . 1 . . 3 Data Loss (minor) 38 | . . 1 . . . 1 . . . . . . . . . . . 3 1 . . 2 . 6 1 14 9 Data Loss (major) 18 | . . . . . . . . . . . . . . . . . . . 1 1 . . . 4 . 8 4 Misfires 19 | . . . . . . . . . . . . . . . 2 . 1 1 1 . . . . 3 . 5 6 Alerts 7 | . . . . . . 2 . . . . . . . . . . 1 . . 1 . . . . . 1 2 Misdirections 15 | . . . . . . . . . . . . . . . . . . . . . . . . 1 . 2 12 Weapon Failures 20 | . . . . . . 1 . . . . . . . . . . 1 . . . . . . 2 . 4 12 Overload Shots 3 | . . . . . . . . . . . . . . . . . . . . . . . . . . . 3 Overflow Damage 1759 | . 1 3 . 11 . 1 . . . . 56 . . 4 . . 47 . . 10 30 208 57 196 69 122 944 Projectiles 1116 | . 1 3 . . . . . . . . . . . . . . 10 . . 10 30 109 57 139 69 122 566 Explosions 583 | . . . . 11 . 1 . . . . . . . . . . 37 . . . . 99 . 57 . . 378 Melee 60 | . . . . . . . . . . . 56 . . 4 . . . . . . . . . . . . . Knockbacks 2 | . . . . . . . . . . . . . . 2 . . . . . . . . . . . . . Impact . | . . . . . . . . . . . . . . . . . . . . . . . . . . . . Kinetic 1 | . . . . . . . . . . . . . . 1 . . . . . . . . . . . . . Secondary 1 | . . . . . . . . . . . . . . 1 . . . . . . . . . . . . . Self-Inflicted Damage 849 | . . . . . . 165 . . . . . . . . . . 123 . . . . 54 . 174 . 99 234 Shots 16 | . . . . . . 6 . . . . . . . . . . 3 . . . . 1 . 2 . 1 3 Rammed 3 | . . . 1 . . 2 . . . . . . . . . . . . . . . . . . . . . Targets Rammed 3 | . . . 1 . . 2 . . . . . . . . . . . . . . . . . . . . . Kicked . | . . . . . . . . . . . . . . . . . . . . . . . . . . . . Crushed . | . . . . . . . . . . . . . . . . . . . . . . . . . . . . Highest Temperature 467 | . 255 165 339 15 . 467 97 60 . . 114 48 1 3 11 208 322 249 . . 101 174 96 185 . 131 240 Average Temperature 61 | . 86 76 128 10 . 155 29 12 . . 28 22 1 1 6 43 91 102 . . 21 33 29 93 . 102 60 Received Heat Transfer 4029 | . 87 . 237 57 . 396 939 81 9 . . . . 282 72 81 288 . . . 168 255 46 264 32 104 631 Effects 3 | . . . . . . 1 . . . . . . . . . . 2 . . . . . . . . . . Shutdowns 2 | . . . . . . 1 . . . . . . . . . . 1 . . . . . . . . . . Energy Bleed 1 | . . . . . . . . . . . . . . . . . 1 . . . . . . . . . . Siege Activations 41 | . . . . . . . . . . . . . . . . . 3 1 . 1 3 4 . 8 6 7 8 Total Turns 611 | . . . . . . . . . . . . . . . . . 26 15 . 12 58 71 . 127 49 84 169 Longest Duration 51 | . . . . . . . . . . . . . . . . . 13 15 . 12 22 41 . 35 16 18 51 Martial Activations . | . . . . . . . . . . . . . . . . . . . . . . . . . . . . Shielding Activations . | . . . . . . . . . . . . . . . . . . . . . . . . . . . . Robots Disrupted . | . . . . . . . . . . . . . . . . . . . . . . . . . . . . Combat Hostiles . | . . . . . . . . . . . . . . . . . . . . . . . . . . . . Robots Corrupted 27 | . . . . . . . . . . . . . . . . . . . . . . . . 4 . 16 7 Combat Hostiles 26 | . . . . . . . . . . . . . . . . . . . . . . . . 3 . 16 7 Parts Fried 59 | . . . . . . . . . . . . . . . . . . . . . . . . 10 . 34 15 Impact Corruptions . | . . . . . . . . . . . . . . . . . . . . . . . . . . . . Robots Melted 26 | . 1 . . . . 2 2 . . . . . . . . . . . . . 1 . 1 10 2 5 2 Combat Hostiles 25 | . 1 . . . . 2 2 . . . . . . . . . . . . . 1 . 1 10 2 4 2 Parts Melted 88 | . 5 1 3 . . 5 11 2 . . . . . 2 . 2 1 . . 1 3 6 6 21 5 11 3 Heat Transferred 33813 | . 1554 407 1739 407 . 1702 4995 1665 296 . . . . . 851 1258 1150 50 . 650 750 2696 1094 4665 1813 1326 4745 Parts Sabotaged 2 | . . . . . . . . . . . . . . . . . . . . . . . . 1 . . 1 Parts Stolen . | . . . . . . . . . . . . . . . . . . . . . . . . . . . . Parts Stripped . | . . . . . . . . . . . . . . . . . . . . . . . . . . . . Power Chain Reactions 4 | . . . . . . . . . . . . . . . . . . . . . . . . 1 . 1 2 Alert | -11 -10 -10 -9 -9 -9 -8 -8 -8 -8 -8 -6 -6 -6 -6 -6 -6 -5 -5 -5 -5 -4 -4 -3 -3 -2 -2 -2 ------- Run | Yrd Mat Min Mat Min Exi Min Mat Sto Rec Scr Fac Was Fac Ext Cet Arc Fac Upp Upp Zhi Pro Fac Res Tes Res Qua Frg Maximum Alert Level 4 | . 1 . . . . 1 2 1 . . . . . . 1 1 4 . . . . 1 . 2 1 2 3 Low Security (%) 61 | 100 67 100 100 100 . 64 30 40 100 . 100 100 100 100 58 79 44 . . . . 56 100 53 . 9 35 Level 1 30 | . 32 . . . . 35 66 59 . . . . . . 41 20 1 . . . . 43 . 25 100 88 16 Level 2 6 | . . . . . . . 2 . . . . . . . . . 37 . . . . . . 20 . 1 35 Level 3 1 | . . . . . . . . . . . . . . . . . 14 . . . . . . . . . 12 Level 4 . | . . . . . . . . . . . . . . . . . 2 . . . . . . . . . . Level 5 . | . . . . . . . . . . . . . . . . . . . . . . . . . . . . High Security . | . . . . . . . . . . . . . . . . . . . . . . . . . . . . Max Security . | . . . . . . . . . . . . . . . . . . . . . . . . . . . . Peak Influence 1229 | . 244 75 118 105 . 264 408 397 131 . 104 21 36 186 282 229 1229 . . . . 371 171 488 316 421 1004 Initial 272 | . . 61 . 20 . . 99 160 131 . . 21 . 7 88 56 17 . . . . 37 171 . 272 164 235 Average 178 | . 169 19 43 18 . 105 247 263 23 . 52 8 10 50 181 143 406 . . . . 160 53 221 259 315 375 Influence Increases 11887 | . 584 145 333 153 . 475 816 533 110 . 365 . 92 827 404 285 1564 140 . 5 230 795 164 1170 324 933 1440 Destroy 0b10 Robot/C 6540 | . 400 120 220 120 . 280 560 260 80 . 20 . . 420 220 80 700 140 . . 200 460 80 680 240 540 720 Destroy 0b10 Robot/NC 350 | . 15 5 20 . . 10 20 25 . . 25 . 10 15 10 45 70 . . 5 . 25 10 20 5 5 10 Destroy Leader 1088 | . 74 20 54 20 . 50 102 68 . . 14 . 2 46 10 . 112 . . . 30 104 20 100 52 120 90 Allied During Kill 894 | . . . . . . . . . . . . . . 252 130 125 387 . . . . . . . . . . Successful Hack 167 | . 19 . 20 . . . 6 11 . . 24 . 28 12 . . 8 . . . . . . 21 . 13 5 Select Force Hacks 90 | . 60 . . . . . . . 30 . . . . . . . . . . . . . . . . . . Disable Machine 735 | . . . . . . 15 30 . . . . . . . . 30 45 . . . . 75 . 135 . 105 300 Anti-Garrison Action 300 | . . . . . . . . 150 . . . . . . . . . . . . . . . . . . 150 Destroy Structure 958 | . 16 . 4 13 . 45 23 4 . . 27 . 7 22 19 5 212 . . . . 116 24 154 27 150 90 Partial Spotted 165 | . . . 15 . . . . . . . 45 . 45 30 . . 30 . . . . . . . . . . Lose Combat Pursuer 600 | . . . . . . 75 75 15 . . 210 . . 30 15 . . . . . . 15 30 60 . . 75 Influence Decreases 10910 | . 426 303 280 155 51 219 691 577 447 . 303 62 76 685 422 374 392 651 266 451 170 528 491 686 516 806 882 Entered New Map 2741 | . . 97 . 33 51 . 157 221 206 . . 41 . 9 70 84 34 453 136 446 . 23 156 . 212 128 184 Time Decay 7054 | . 426 206 260 122 . 169 494 356 231 . 303 20 76 417 262 270 248 198 130 5 170 345 335 561 294 658 498 Lost Part 695 | . . . 20 . . 50 40 . 10 . . 1 . 19 10 . 30 . . . . 160 . 125 10 20 200 Lost Ally 420 | . . . . . . . . . . . . . . 240 80 20 80 . . . . . . . . . . Squads Dispatched 63 | . 3 . . . . . 3 2 . . 8 . 2 2 1 . 8 . . . . 3 7 9 1 3 11 Investigation 23 | . 2 . . . . . 1 . . . 5 . 1 1 1 . 3 . . . . . 4 . . 1 4 Extermination 15 | . . . . . . . . . . . 3 . 1 . . . 1 . . . . 2 . 3 1 1 3 Reinforcement 16 | . 1 . . . . . 2 . . . . . . 1 . . 3 . . . . 1 3 2 . 1 2 Assault 6 | . . . . . . . . 2 . . . . . . . . 1 . . . . . . 1 . . 2 Garrison 3 | . . . . . . . . . . . . . . . . . . . . . . . . 3 . . . Intercept . | . . . . . . . . . . . . . . . . . . . . . . . . . . . . Searches Triggered . | . . . . . . . . . . . . . . . . . . . . . . . . . . . . Construction Impeded 5 | . . . . . . . . . . . . . . 1 . . 1 . . . . 1 . 1 . 1 . Haulers Reinforced 2 | . . . . . . . . . . . . . . . . . 2 . . . . . . . . . . Active Scanning Responses . | . . . . . . . . . . . . . . . . . . . . . . . . . . . . Cargo Convoy Interrupts . | . . . . . . . . . . . . . . . . . . . . . . . . . . . . Stealth | -11 -10 -10 -9 -9 -9 -8 -8 -8 -8 -8 -6 -6 -6 -6 -6 -6 -5 -5 -5 -5 -4 -4 -3 -3 -2 -2 -2 --------- Run | Yrd Mat Min Mat Min Exi Min Mat Sto Rec Scr Fac Was Fac Ext Cet Arc Fac Upp Upp Zhi Pro Fac Res Tes Res Qua Frg Distress Signals 43 | . 2 . 2 2 . . 3 . . . 3 . . 2 2 . 5 . . . . 1 8 6 1 . 6 Communications Jammed . | . . . . . . . . . . . . . . . . . . . . . . . . . . . . Distress Signals . | . . . . . . . . . . . . . . . . . . . . . . . . . . . . Times Spotted 472 | . 30 6 18 4 . 18 46 20 2 . 15 6 1 21 13 11 40 2 . . 10 34 16 52 15 28 64 Peak Tracking Total 14 | . 6 3 5 2 . 4 7 5 1 . 5 6 1 3 5 3 12 3 . . 4 6 5 7 6 4 14 Tactical Retreats 28 | . . . . . . 3 4 1 . . 8 . . 2 1 . . . . . . 1 2 2 . . 4 Traps | -11 -10 -10 -9 -9 -9 -8 -8 -8 -8 -8 -6 -6 -6 -6 -6 -6 -5 -5 -5 -5 -4 -4 -3 -3 -2 -2 -2 ------- Run | Yrd Mat Min Mat Min Exi Min Mat Sto Rec Scr Fac Was Fac Ext Cet Arc Fac Upp Upp Zhi Pro Fac Res Tes Res Qua Frg Traps Triggered 13 | . 1 . . . . . 1 3 . . 1 . 1 . . . 1 . . . . . . 3 1 1 . Indirectly . | . . . . . . . . . . . . . . . . . . . . . . . . . . . . Trap Hack Attempts . | . . . . . . . . . . . . . . . . . . . . . . . . . . . . Triggered . | . . . . . . . . . . . . . . . . . . . . . . . . . . . . Disarmed . | . . . . . . . . . . . . . . . . . . . . . . . . . . . . Reprogrammed . | . . . . . . . . . . . . . . . . . . . . . . . . . . . . Reused . | . . . . . . . . . . . . . . . . . . . . . . . . . . . . Traps Extracted . | . . . . . . . . . . . . . . . . . . . . . . . . . . . . Installed . | . . . . . . . . . . . . . . . . . . . . . . . . . . . . Triggered . | . . . . . . . . . . . . . . . . . . . . . . . . . . . . Machines | -11 -10 -10 -9 -9 -9 -8 -8 -8 -8 -8 -6 -6 -6 -6 -6 -6 -5 -5 -5 -5 -4 -4 -3 -3 -2 -2 -2 ---------- Run | Yrd Mat Min Mat Min Exi Min Mat Sto Rec Scr Fac Was Fac Ext Cet Arc Fac Upp Upp Zhi Pro Fac Res Tes Res Qua Frg Machines Disabled 58 | . . . . . . 1 2 1 . . . . . 1 . 2 3 3 . . 1 5 . 9 . 7 23 Max in Single Turn 4 | . . . . . . 1 1 1 . . . . . . . 1 . 2 . . 1 4 . 1 . 1 3 Garrison Access 10 | . . . . . . . . 1 . . 1 . 1 . . . 2 . . . . 1 1 1 . 1 1 Machines Repaired . | . . . . . . . . . . . . . . . . . . . . . . . . . . . . Machines Dismantled . | . . . . . . . . . . . . . . . . . . . . . . . . . . . . Machines Sabotaged . | . . . . . . . . . . . . . . . . . . . . . . . . . . . . Overloaded Fab Kills . | . . . . . . . . . . . . . . . . . . . . . . . . . . . . Hacking | -11 -10 -10 -9 -9 -9 -8 -8 -8 -8 -8 -6 -6 -6 -6 -6 -6 -5 -5 -5 -5 -4 -4 -3 -3 -2 -2 -2 --------- Run | Yrd Mat Min Mat Min Exi Min Mat Sto Rec Scr Fac Was Fac Ext Cet Arc Fac Upp Upp Zhi Pro Fac Res Tes Res Qua Frg Machines Accessed 106 | . 6 . 4 . 1 . 3 5 8 4 15 . 5 8 1 1 9 1 . 4 1 2 3 4 1 11 9 Terminals 62 | . 4 . 3 . . . 3 4 5 . 8 . 3 8 1 . 2 1 . . 1 1 2 3 1 8 4 Fabricators . | . . . . . . . . . . . . . . . . . . . . . . . . . . . . Repair Stations . | . . . . . . . . . . . . . . . . . . . . . . . . . . . . Recycling Units 15 | . 2 . . . . . . . 1 . 5 . 1 . . . 3 . . . . . . . . . 3 Scanalyzers 7 | . . . 1 . . . . . . . 1 . . . . . 2 . . . . . . . . 2 1 Garrison Access 10 | . . . . . . . . 1 . . 1 . 1 . . . 2 . . . . 1 1 1 . 1 1 Total Hacks 273 | . 10 . 11 . 1 . 8 10 33 37 30 . 8 14 2 3 19 7 . 17 1 4 5 9 1 19 24 Successful 168 | . 6 . 6 . 1 . 2 6 28 37 15 . 5 7 1 3 6 7 . 17 1 3 2 4 . 6 5 Failed 102 | . 3 . 4 . . . 6 4 5 . 15 . 3 7 1 . 13 . . . . 1 3 5 1 13 18 Catastrophic 26 | . . . 1 . . . . . 1 . 1 . . 4 1 . . . . . . . 2 . 1 5 10 Database Lockouts 3 | . 1 . 1 . . . . . . . . . . . . . . . . . . . . . . . 1 Manual 99 | . 10 . 8 . . . 5 5 10 . 14 . 4 3 1 . 11 . . . . 2 2 6 . 5 13 Terminals 132 | . 8 . 9 . . . 8 7 9 . 18 . 5 14 2 . 6 7 . . 1 3 3 6 1 14 11 Fabricators . | . . . . . . . . . . . . . . . . . . . . . . . . . . . . Repair Stations . | . . . . . . . . . . . . . . . . . . . . . . . . . . . . Recycling Units 27 | . 2 . . . . . . . 1 . 9 . 1 . . . 5 . . . . . . . . . 9 Scanalyzers 13 | . . . 2 . . . . . . . 2 . . . . . 3 . . . . . . . . 4 2 Garrison Access 20 | . . . . . . . . 3 . . 1 . 2 . . . 5 . . . . 1 2 3 . 1 2 Terminal Hacks 134 | . 4 . 4 . 1 . 1 5 27 37 6 . 3 7 1 3 . 7 . 17 1 1 . 1 . 4 4 Record 76 | . . . . . 1 . . . 22 30 . . . . . 3 . 7 . 5 1 . . . . 3 4 Part Schematic 6 | . . . . . . . . 1 . . 1 . . . . . . . . 4 . . . . . . . Robot Analysis 15 | . 3 . 1 . . . . . . 7 . . . . . . . . . 4 . . . . . . . Prototype ID Bank 5 | . . . . . . . . 1 . . . . . . . . . . . 4 . . . . . . . Open Door 10 | . . . . . . . . 1 . . . . 1 7 1 . . . . . . . . . . . . Level Access Points 1 | . . . . . . . . . . . . . . . . . . . . . . 1 . . . . . Branch Access Points 4 | . . . 1 . . . 1 1 . . . . 1 . . . . . . . . . . . . . . Terminal Index 2 | . . . . . . . . . 1 . 1 . . . . . . . . . . . . . . . . Recycling Unit Index 2 | . 1 . . . . . . . . . . . 1 . . . . . . . . . . . . . . Scanalyzer Index 1 | . . . 1 . . . . . . . . . . . . . . . . . . . . . . . . Alert Level 5 | . . . . . . . . . 1 . 3 . . . . . . . . . . . . . . 1 . Unreport Threat 1 | . . . . . . . . . 1 . . . . . . . . . . . . . . . . . . Locate Traps 1 | . . . . . . . . . . . 1 . . . . . . . . . . . . . . . . Registered Prototypes 1 | . . . . . . . . 1 . . . . . . . . . . . . . . . . . . . Zone Layout 3 | . . . 1 . . . . . 1 . . . . . . . . . . . . . . 1 . . . Release Object 1 | . . . . . . . . . 1 . . . . . . . . . . . . . . . . . . Fabricator Hacks . | . . . . . . . . . . . . . . . . . . . . . . . . . . . . Repair Station Hacks . | . . . . . . . . . . . . . . . . . . . . . . . . . . . . Recycling Unit Hacks . | . . . . . . . . . . . . . . . . . . . . . . . . . . . . Scanalyzer 5 | . . . 1 . . . . . . . 1 . . . . . 1 . . . . . . . . 1 1 Retrieve Study 5 | . . . 1 . . . . . . . 1 . . . . . 1 . . . . . . . . 1 1 Garrison Access Hacks 8 | . . . . . . . . . . . 1 . 1 . . . 2 . . . . 1 1 1 . 1 . Seal Access 8 | . . . . . . . . . . . 1 . 1 . . . 2 . . . . 1 1 1 . 1 . Unauthorized Hacks 21 | . 2 . 1 . . . 1 1 1 . 7 . 1 . . . 3 . . . . 1 1 2 . . . Terminals 9 | . . . 1 . . . 1 1 . . 2 . . . . . . . . . . 1 1 2 . . . Assimilate 1 | . . . . . . . . . . . 1 . . . . . . . . . . . . . . . . Botnet 8 | . . . 1 . . . 1 1 . . 1 . . . . . . . . . . 1 1 2 . . . Fabricators . | . . . . . . . . . . . . . . . . . . . . . . . . . . . . Repair Stations . | . . . . . . . . . . . . . . . . . . . . . . . . . . . . Recycling Units 12 | . 2 . . . . . . . 1 . 5 . 1 . . . 3 . . . . . . . . . . Tunnel 3 | . 2 . . . . . . . 1 . . . . . . . . . . . . . . . . . . Fedlink 9 | . . . . . . . . . . . 5 . 1 . . . 3 . . . . . . . . . . Scanalyzers . | . . . . . . . . . . . . . . . . . . . . . . . . . . . . Garrison Access . | . . . . . . . . . . . . . . . . . . . . . . . . . . . . Data Cores Recovered 3 | . 1 . . . . . . . . . 2 . . . . . . . . . . . . . . . . Used 2 | . . . . . . . . . . . 2 . . . . . . . . . . . . . . . . Hacking Detections 58 | . 2 . 2 . . . 2 3 4 . 8 . 2 2 2 . 7 . . . . 1 2 2 1 10 8 Full Trace Events 8 | . . . . . . . . 1 1 . . . . . 1 . . . . . . . . . . 1 4 Feedback Events . | . . . . . . . . . . . . . . . . . . . . . . . . . . . . Feedback Blocked . | . . . . . . . . . . . . . . . . . . . . . . . . . . . . Robot Schematics Acquired 2 | . . . . . . . . . . . . . . . . . . . . . . . . . . 2 . Robots Built . | . . . . . . . . . . . . . . . . . . . . . . . . . . . . Authchips . | . . . . . . . . . . . . . . . . . . . . . . . . . . . . Time . | . . . . . . . . . . . . . . . . . . . . . . . . . . . . Total Robot Build Rating . | . . . . . . . . . . . . . . . . . . . . . . . . . . . . Part Schematics Acquired 12 | . . . . . . . . 1 . . 1 . . . . . . . . 4 . . . . . 6 . Parts Built . | . . . . . . . . . . . . . . . . . . . . . . . . . . . . Authchips . | . . . . . . . . . . . . . . . . . . . . . . . . . . . . Time . | . . . . . . . . . . . . . . . . . . . . . . . . . . . . Total Part Build Rating . | . . . . . . . . . . . . . . . . . . . . . . . . . . . . Part Studies Acquired 5 | . . . 1 . . . . . . . 1 . . . . . 1 . . . . . . . . 1 1 Parts Repaired . | . . . . . . . . . . . . . . . . . . . . . . . . . . . . Time . | . . . . . . . . . . . . . . . . . . . . . . . . . . . . Parts Recycled . | . . . . . . . . . . . . . . . . . . . . . . . . . . . . Recycled Matter . | . . . . . . . . . . . . . . . . . . . . . . . . . . . . Retrieved Matter . | . . . . . . . . . . . . . . . . . . . . . . . . . . . . Retrieved Components . | . . . . . . . . . . . . . . . . . . . . . . . . . . . . Parts Scanalyzed . | . . . . . . . . . . . . . . . . . . . . . . . . . . . . Part Schematics Acquired . | . . . . . . . . . . . . . . . . . . . . . . . . . . . . Parts Damaged . | . . . . . . . . . . . . . . . . . . . . . . . . . . . . Bothacking | -11 -10 -10 -9 -9 -9 -8 -8 -8 -8 -8 -6 -6 -6 -6 -6 -6 -5 -5 -5 -5 -4 -4 -3 -3 -2 -2 -2 ------------ Run | Yrd Mat Min Mat Min Exi Min Mat Sto Rec Scr Fac Was Fac Ext Cet Arc Fac Upp Upp Zhi Pro Fac Res Tes Res Qua Frg Used RIF Installer . | . . . . . . . . . . . . . . . . . . . . . . . . . . . . Robots Hacked 1 | . . . . . . . . . . . 1 . . . . . . . . . . . . . . . . Non-combat 1 | . . . . . . . . . . . 1 . . . . . . . . . . . . . . . . Combat . | . . . . . . . . . . . . . . . . . . . . . . . . . . . . Robot Hacks Applied 1 | . . . . . . . . . . . 1 . . . . . . . . . . . . . . . . find_chute 1 | . . . . . . . . . . . 1 . . . . . . . . . . . . . . . . Relay Couplers Released 5 | . . . . . . . . 1 . . . . . . . . . . . . . 4 . . . . . Machine Destruction 1 | . . . . . . . . 1 . . . . . . . . . . . . . . . . . . . Programmers 4 | . . . . . . . . . . . . . . . . . . . . . . 4 . . . . . Fabnet Peak Effective % . | . . . . . . . . . . . . . . . . . . . . . . . . . . . . Robots Rewired 18 | . . . . . . . . . . . . . . 18 . . . . . . . . . . . . . Allies Hacked 1 | . . . . . . . . . . . . . . 1 . . . . . . . . . . . . . Hacks Repelled . | . . . . . . . . . . . . . . . . . . . . . . . . . . . . Allies | -11 -10 -10 -9 -9 -9 -8 -8 -8 -8 -8 -6 -6 -6 -6 -6 -6 -5 -5 -5 -5 -4 -4 -3 -3 -2 -2 -2 -------- Run | Yrd Mat Min Mat Min Exi Min Mat Sto Rec Scr Fac Was Fac Ext Cet Arc Fac Upp Upp Zhi Pro Fac Res Tes Res Qua Frg Total Allies 32 | . . . . . . . . . . . . . . 27 5 . . . . . . . . . . . . Largest Group 12 | . . . . . . . . . . . . . . 12 9 5 4 . . . . . . . . . . Highest-Rated Group 464 | . . . . . . . . . . . . . . 464 447 418 384 . . . . . . . . . . Highest-Rated Ally 159 | . . . . . . . . . . . . . . 159 159 96 96 . . . . . . . . . . Initial UFD Resources 71 | . . . . . . . . . . . 23 43 43 45 45 45 47 63 63 63 65 65 67 67 71 71 71 Total Orders . | . . . . . . . . . . . . . . . . . . . . . . . . . . . . Ally Attacks 294 | . . . . . . . . . . . . . . 128 75 19 72 . . . . . . . . . . Total Damage 8050 | . . . . . . . . . . . . . . 2373 1457 791 3429 . . . . . . . . . . Kills 58 | . . . . . . . . . . . . . . 16 15 4 23 . . . . . . . . . . Allies Corrupted 1 | . . . . . . . . . . . . . . . . . 1 . . . . . . . . . . Allies Melted . | . . . . . . . . . . . . . . . . . . . . . . . . . . . . Intel | -11 -10 -10 -9 -9 -9 -8 -8 -8 -8 -8 -6 -6 -6 -6 -6 -6 -5 -5 -5 -5 -4 -4 -3 -3 -2 -2 -2 ------- Run | Yrd Mat Min Mat Min Exi Min Mat Sto Rec Scr Fac Was Fac Ext Cet Arc Fac Upp Upp Zhi Pro Fac Res Tes Res Qua Frg Active Infowar (turns) 8146 | . . . . . . . . . . . 883 71 242 327 . . 789 409 276 308 452 362 187 1170 137 1739 794 Sensors 5496 | . . . . . . . . . . . 883 71 242 85 . . 703 409 276 304 75 . . . . 1728 720 Structural 5962 | . . . . . . . . . . . . . . . . . 789 409 276 308 452 347 187 1170 137 1254 633 Traps 2112 | . . . . . . . . . . . 620 . 195 276 . . 660 . . . . 361 . . . . . Robot Analysis Total 15 | . 3 . 1 . . . . . . 7 . . . . . . . . . 4 . . . . . . . Derelict Logs Recovered 4 | . . 2 . 1 . . . . . . . . . . . . . 1 . . . . . . . . . Drone Launches . | . . . . . . . . . . . . . . . . . . . . . . . . . . . . Drone Recoveries . | . . . . . . . . . . . . . . . . . . . . . . . . . . . . Exploration | -11 -10 -10 -9 -9 -9 -8 -8 -8 -8 -8 -6 -6 -6 -6 -6 -6 -5 -5 -5 -5 -4 -4 -3 -3 -2 -2 -2 ------------- Run | Yrd Mat Min Mat Min Exi Min Mat Sto Rec Scr Fac Was Fac Ext Cet Arc Fac Upp Upp Zhi Pro Fac Res Tes Res Qua Frg Turns Passed 24297 | 70 1109 863 628 898 248 444 1318 803 1038 2413 942 71 242 1419 573 597 806 409 276 308 607 846 867 2056 646 2479 1321 Spaces Moved 14357 | 39 543 517 283 534 156 192 458 256 424 1089 1724 218 518 781 287 342 970 236 170 158 300 349 549 984 304 1336 640 Core 96 | 3 . . . . . . . . . . . . . . . . . . . . . . . . . . 93 Treads 9486 | 36 543 517 283 534 156 192 458 256 424 966 15 . . 648 287 260 146 236 170 158 300 205 . 509 304 1336 547 Legs 17 | . . . . . . . . . . . . . . . . . . . . . . 17 . . . . . Wheels 1151 | . . . . . . . . . . . . . . . . . . . . . . 127 549 475 . . . Hover 906 | . . . . . . . . . . . . . . . . 82 824 . . . . . . . . . . Flight 2701 | . . . . . . . . . . 123 1709 218 518 133 . . . . . . . . . . . . . Fastest Speed 23 | 50 160 160 160 160 160 160 160 237 237 29 23 24 23 24 160 40 36 160 160 160 160 140 125 115 155 152 50 Average Speed 134 | 151 160 160 160 160 160 160 207 242 237 216 25 24 24 137 160 132 55 160 160 160 160 156 135 148 156 155 141 Slowest Speed 317 | 160 160 160 160 160 160 160 250 317 237 250 250 31 31 240 160 160 160 160 160 160 160 275 155 236 157 237 160 Overloaded Moves . | . . . . . . . . . . . . . . . . . . . . . . . . . . . . Propulsion Burnouts . | . . . . . . . . . . . . . . . . . . . . . . . . . . . . Robots Hopped 8 | . . . . . . . . . . . 6 . 2 . . . . . . . . . . . . . . Potential Cave-ins 17 | . . . . . . . . . . . . . . . . . . . . . . . . . . . 17 Cave-ins Triggered 2 | . . . . . . . . . . . . . . . . . . . . . . . . . . . 2 Exploration Rate (%) 56 | 4 94 98 35 99 49 44 45 45 97 82 44 81 15 82 73 94 27 51 32 60 63 14 14 88 12 93 38 Regions Visited 27 Branch Regions 17 Pre-discovered Areas 13 | . 2 1 . 1 1 . . . 1 3 1 . . . . . . . . 3 . . . . . . . Known Exits Taken 18 | . . . 1 . . . 1 1 . 1 . . 1 1 1 1 1 1 1 1 1 1 1 1 1 1 . Unknown Exits Taken 7 | 1 1 1 . 1 1 1 . . 1 . . . . . . . . . . . . . . . . . . Scrap Searched 11 | . . 2 . 2 . . . . . 7 . . . . . . . . . . . . . . . . . Spaces Dug 114 | . . . . . . . . . . . 27 . 7 . . . 16 . 1 . 7 3 1 13 1 25 13 Terrain Destroyed 621 | . 10 . . 13 . 56 21 . . . 27 . 7 14 2 4 86 74 17 . 51 64 10 79 9 54 23 Melee 34 | . . . . . . . . . . . 27 . 7 . . . . . . . . . . . . . . Projectile 203 | . . . . . . . . . . . . . . 14 2 4 25 . 1 . 15 16 10 40 9 45 22 AOE 384 | . 10 . . 13 . 56 21 . . . . . . . . . 61 74 16 . 36 48 . 39 . 9 1 Terrain Rammed . | . . . . . . . . . . . . . . . . . . . . . . . . . . . . Walls Destroyed . | . . . . . . . . . . . . . . . . . . . . . . . . . . . . Machines Disabled . | . . . . . . . . . . . . . . . . . . . . . . . . . . . . Actions | -11 -10 -10 -9 -9 -9 -8 -8 -8 -8 -8 -6 -6 -6 -6 -6 -6 -5 -5 -5 -5 -4 -4 -3 -3 -2 -2 -2 --------- Run | Yrd Mat Min Mat Min Exi Min Mat Sto Rec Scr Fac Was Fac Ext Cet Arc Fac Upp Upp Zhi Pro Fac Res Tes Res Qua Frg Total 18111 | 47 698 531 394 568 155 254 652 386 447 1147 2151 234 613 1056 381 434 1172 260 173 200 370 512 638 1370 478 1745 1045 Wait 1632 | . 93 1 48 14 . 7 52 56 13 . 350 14 67 77 20 42 114 18 . 8 30 47 30 129 77 120 205 Move 14314 | 38 542 516 282 533 155 191 457 255 423 1088 1713 217 513 780 286 341 969 235 169 157 299 348 548 983 303 1335 638 Hop 7 | . . . . . . . . . . . 5 . 2 . . . . . . . . . . . . . . Pick Up 197 | 3 8 2 10 3 . 2 16 9 2 29 8 . 2 2 11 5 8 . 1 1 1 12 14 15 10 19 4 Fast Attach 196 | 6 1 . 4 . . 2 5 12 . 9 6 2 1 12 10 10 4 . . 10 2 10 6 44 8 29 3 Attach 103 | . . . 5 1 . 4 7 2 1 3 9 . 1 2 1 . 7 . . 1 1 14 3 12 3 6 20 Detach 32 | . . . 1 . . . . . . . . . . 7 1 . 3 . . 1 . . 1 8 1 5 4 Swap 134 | . 8 . 2 5 . 5 14 4 . 1 4 . 2 10 3 2 7 1 1 . 3 8 6 16 5 23 4 Drop 289 | . 4 1 7 5 . . 14 18 2 17 20 1 1 11 27 10 9 . 1 9 2 4 11 45 12 53 5 Fire 1013 | . 42 11 34 7 . 41 87 30 6 . . . . 28 22 24 51 6 1 13 32 69 19 118 59 155 158 Melee 54 | . . . . . . . . . . . 36 . 9 9 . . . . . . . . . . . . . Ram 1 | . . . . . . . . . . . . . . . . . . . . . . . . . . . 1 Kick . | . . . . . . . . . . . . . . . . . . . . . . . . . . . . Crush 3 | . . . 1 . . 2 . . . . . . . . . . . . . . . . . . . . . Escape Stasis 18 | . . . . . . . . . . . . . 15 . . . . . . . . . . . . . 3 Rewire 118 | . . . . . . . . . . . . . . 118 . . . . . . . . . . . . . Trap . | . . . . . . . . . . . . . . . . . . . . . . . . . . . . Miscellaneous . | . . . . . . . . . . . . . . . . . . . . . . . . . . . . Route ------- -11/Scrapyard -10/Materials (discovered 5 exits: *Mat x3 / [*Min x2]) -10/Mines (discovered 3 exits: *Mat x2 / [*Sub]) -9/Materials (discovered 2 exits: *Min x2) -9/Mines (discovered 3 exits: *Mat x2 / *Exi) -9/Exiles -8/Mines -8/Materials (discovered 2 exits: [*Fac] / *Sto) -8/Storage -8/Recycling (discovered 2 exits: *Fac / *Scr) -8/Scraptown (discovered 2 exits: *Fac x2) -6/Factory (discovered 7 exits: *Fac x4 / *Low / *Ext x2) -6/Waste -6/Factory (discovered 4 exits: *Low x2 / *Ext x2) -6/Extension (discovered 2 exits: *Fac / *Cet) -6/Cetus (discovered 2 exits: *Fac / *Arc) -6/Archives (discovered 3 exits: *Fac / *Hub x2) -5/Factory -5/Upper Caves -5/Upper Caves -5/Zhirov -4/Proximity Caves -4/Factory (discovered 4 exits: *Res x4) -3/Research (discovered 3 exits: *Res / *Tes x2) -3/Testing -2/Research (discovered 2 exits: Acc / *Qua) -2/Quarantine (discovered 3 exits: *Acc / [*Sec] / *Frg) -2/Protoforge History --------- Turn | Location | Event 13 | -11/Scrapyard | Discovered new exit (range 16) 71 | -11/Scrapyard | Entered Materials 308 | -10/Materials | Build established: Mutant 339 | -10/Materials | Discovered new exit (range 12) 470 | -10/Materials | Discovered new exit (range 9) 710 | -10/Materials | Discovered new exit (range 8) 776 | -10/Materials | Central database locked down 1022 | -10/Materials | Discovered new exit (range 16) 1154 | -10/Materials | Discovered new exit (range 12) 1180 | -10/Materials | Entered Mines 1225 | -10/Mines | Learned Materials emergency access door positions 1393 | -10/Mines | Discovered new exit (range 9) 1735 | -10/Mines | Discovered new exit (range 6) 1961 | -10/Mines | Discovered new exit (range 6) 2043 | -10/Mines | Entered Materials 2043 | -9/Materials | Evolved 2 slots: Propulsion x1, Utility x1 2140 | -9/Materials | Discovered new exit (range 16) 2463 | -9/Materials | Central database locked down 2511 | -9/Materials | Build established: Scavenger-Mutant 2529 | -9/Materials | Identified exit to Mines 2671 | -9/Materials | Entered Mines 2710 | -9/Mines | Deemed a non-threat by the Exiles lab entrance 2710 | -9/Mines | Discovered new exit (range 5) 2781 | -9/Mines | Received a Rocket Launcher from a helpful Derelict 2835 | -9/Mines | Discovered new exit (range 14) 3223 | -9/Mines | Discovered new exit (range 15) 3569 | -9/Mines | Entered Exiles 3606 | -9/Exiles | Met 8R-AWN 3637 | -9/Exiles | Met EX-HEX 3697 | -9/Exiles | Met EX-DEC 3707 | -9/Exiles | Learned location of Zion (-7) 3800 | -9/Exiles | Discovered new exit (range 14) 3817 | -9/Exiles | Entered Mines 3862 | -8/Mines | Core integrity fell below 50% 4182 | -8/Mines | Discovered new exit (range 10) 4261 | -8/Mines | Entered Materials 4261 | -8/Materials | Evolved 2 slots: Propulsion x1, Utility x1 4993 | -8/Materials | Identified exit to Storage 5088 | -8/Materials | Build established: Mutant 5115 | -8/Materials | Discovered new exit (range 15) 5579 | -8/Materials | Entered Storage 6155 | -8/Storage | Identified exit to Recycling 6302 | -8/Storage | Build established: Hacker-Mutant 6374 | -8/Storage | Used back door to open Recycling access 6382 | -8/Storage | Entered Recycling 6617 | -8/Recycling | Scanned before Scraplab entrance 7029 | -8/Recycling | Discovered new exit (range 16) 7361 | -8/Recycling | Entered Scraplab 7382 | -8/Recycling | Discovered new exit (range 2) 7420 | -8/Recycling | Entered Scraptown 7714 | -8/Scraptown | Visited Symbiants 7792 | -8/Scraptown | Visited Spacefarers 8379 | -8/Scraptown | Discovered new exit (range 13) 8533 | -8/Scraptown | Visited Cave Peace 8611 | -8/Scraptown | Visited IN-MT5's Study 8635 | -8/Scraptown | Visited Red Mages 8732 | -8/Scraptown | Visited UFD Registry 8732 | -8/Scraptown | Registered with UFD as "Flakripper" 8791 | -8/Scraptown | Visited Junk Cannon Lab 8848 | -8/Scraptown | Visited LU-1G1's Boring Crew 8881 | -8/Scraptown | Visited Scrapoid Pod Storage 8921 | -8/Scraptown | Visited Junk Repository 8985 | -8/Scraptown | Visited DA-N13 Charitable Foundation 8995 | -8/Scraptown | Found DCF Scrap (26 items) 9087 | -8/Scraptown | Visited Analyses Database 9132 | -8/Scraptown | Visited Modified Component R&D 9219 | -8/Scraptown | Visited Chapter 10 9259 | -8/Scraptown | Visited Research Penetration Think Tank 9319 | -8/Scraptown | Visited Cartography Club 9394 | -8/Scraptown | Learned location of Testing (-3) 9394 | -8/Scraptown | Learned location of Quarantine (-2) 9394 | -8/Scraptown | Learned 16 Factory zone layouts 9394 | -8/Scraptown | Learned 8 Lower Caves zone layouts 9394 | -8/Scraptown | Learned 20 Lower Caves zone layouts 9394 | -8/Scraptown | Learned 12 Proximity Caves zone layouts 9394 | -8/Scraptown | Learned 16 Proximity Caves zone layouts 9394 | -8/Scraptown | Learned 20 Proximity Caves zone layouts 9394 | -8/Scraptown | Learned 4 Armory zone layouts 9394 | -8/Scraptown | Learned Research emergency access door positions 9394 | -8/Scraptown | Learned location of 2 exits from Factory 9394 | -8/Scraptown | Learned location of 3 exits from Lower Caves 9394 | -8/Scraptown | Learned location of 2 exits from Upper Caves 9394 | -8/Scraptown | Identified exit to Factory 9400 | -8/Scraptown | Found Deep Structural Scanner 9703 | -8/Scraptown | Met Optimus 9703 | -8/Scraptown | Accepted into 0bPrime 9833 | -8/Scraptown | Entered Factory 9833 | -6/Factory | Evolved 4 slots: Propulsion x2, Utility x2 9834 | -6/Factory | Identified exit to Factory 9836 | -6/Factory | Identified exit to Extension 9945 | -6/Factory | Discovered new exit (range 3) 9946 | -6/Factory | Identified exit to Lower Caves 9985 | -6/Factory | Loaded intel: 8 recycling unit locations 9999 | -6/Factory | Discovered exit to Extension (range 12) 10202 | -6/Factory | Learned location of Protoforge (-2) 10447 | -6/Factory | Build established: Hacker-Scout 10775 | -6/Factory | Sucked down chute 10775 | -6/Factory | Entered Waste 10778 | -6/Waste | Spotted C-40 Crusher 10784 | -6/Waste | Spotted C-40 Crusher 10787 | -6/Waste | Spotted C-40 Crusher 10788 | -6/Waste | Spotted C-40 Crusher 10790 | -6/Waste | Spotted C-40 Crusher 10791 | -6/Waste | Spotted C-40 Crusher 10823 | -6/Waste | Crushed by Compactor (0 parts destroyed, 2 dropped) 10828 | -6/Waste | Discovered new exit (range 16) 10845 | -6/Waste | Identified exit to Factory 10846 | -6/Waste | Entered Factory 11061 | -6/Factory | Loaded intel: 8 recycling unit locations 11088 | -6/Factory | Entered Extension 11097 | -6/Extension | Rescued a captive Derelict 11126 | -6/Extension | Rescued a captive Derelict 11128 | -6/Extension | Rescued a captive Derelict 11483 | -6/Extension | Rescued a captive Derelict 11525 | -6/Extension | Lost 3 allies 11534 | -6/Extension | Rescued a captive Derelict 11800 | -6/Extension | Build established: Scavenger-Mutant 11882 | -6/Extension | Spotted B-75 Beast 11906 | -6/Extension | Allies destroyed B-75 Beast 11909 | -6/Extension | Spotted B-75 Beast 11919 | -6/Extension | Allies destroyed B-75 Beast 11944 | -6/Extension | Lost 3 allies 11987 | -6/Extension | Rescued a captive Derelict 12112 | -6/Extension | Rescued a captive Derelict 12113 | -6/Extension | Rescued a captive Derelict 12322 | -6/Extension | Rescued A7 12379 | -6/Extension | Lost 3 allies 12452 | -6/Extension | Discovered exit to Factory (range 10) 12454 | -6/Extension | Discovered new exit (range 6) 12488 | -6/Extension | Identified exit to Cetus 12503 | -6/Extension | Build established: Commander-Mutant 12507 | -6/Extension | Entered Cetus 12507 | -6/Cetus | Accompanied by 9 allies (A7) 12512 | -6/Cetus | Acquired a Cetus Manufacturing Module code from A7 12529 | -6/Cetus | Spotted Cetus Guard 12529 | -6/Cetus | Spotted Cetus Guard 12534 | -6/Cetus | Spotted Cetus Guard 12538 | -6/Cetus | Spotted Cetus Guard 12539 | -6/Cetus | Allies destroyed Cetus Guard 12555 | -6/Cetus | Allies destroyed Cetus Guard 12556 | -6/Cetus | Allies destroyed Cetus Guard 12557 | -6/Cetus | Allies destroyed Cetus Guard 12584 | -6/Cetus | Lost 4 allies 12642 | -6/Cetus | Escorted A7 to Cetus Mainframe 12660 | -6/Cetus | Started Cetus Manufacturing Module 12685 | -6/Cetus | Manufactured an Enhanced Grunt 12690 | -6/Cetus | Discovered new exit (range 16) 12710 | -6/Cetus | Manufactured an Enhanced Grunt 12718 | -6/Cetus | Spotted Cetus Guard 12718 | -6/Cetus | Spotted Cetus Guard 12723 | -6/Cetus | Spotted Cetus Guard 12723 | -6/Cetus | Allies destroyed Cetus Guard 12727 | -6/Cetus | Allies destroyed Cetus Guard 12727 | -6/Cetus | Spotted Cetus Guard 12735 | -6/Cetus | Manufactured an Enhanced Grunt 12742 | -6/Cetus | Allies destroyed Cetus Guard 12749 | -6/Cetus | Allies destroyed Cetus Guard 12750 | -6/Cetus | Extracted ID and sensor layout for unrecognized location from A7's data core 12760 | -6/Cetus | Manufactured an Enhanced Grunt 12769 | -6/Cetus | Discovered exit to Factory (range 15) 12780 | -6/Cetus | Lost 3 allies 12783 | -6/Cetus | Met Revision 17 12785 | -6/Cetus | Manufactured an Enhanced Grunt 12849 | -6/Cetus | Found Prototype Device 12849 | -6/Cetus | Identified Exp. Thermal Shield 12893 | -6/Cetus | Build established: Scavenger-Mutant 13075 | -6/Cetus | Identified exit to Archives 13080 | -6/Cetus | Entered Archives 13080 | -6/Archives | Accompanied by 5 allies 13237 | -6/Archives | Discovered new exit (range 15) 13260 | -6/Archives | Identified exit to Hub_04(d) 13317 | -6/Archives | Unable to access archive contents 13335 | -6/Archives | Discovered exit to Hub_04(d) (range 15) 13482 | -6/Archives | Discovered exit to Factory (range 16) 13677 | -6/Archives | Entered Factory 13677 | -5/Factory | Accompanied by 4 allies 13677 | -5/Factory | Evolved 2 slots: Propulsion x1, Utility x1 13732 | -5/Factory | Loaded intel: 8 recycling unit locations 13742 | -5/Factory | Spotted B-75 Beast 14091 | -5/Factory | Build established: Scavenger-Scout 14156 | -5/Factory | Found Exp. Thermal Shield 14277 | -5/Factory | First assault squad dispatched 14408 | -5/Factory | Discovered new exit (range 12) 14432 | -5/Factory | Build established: Scavenger-Skirmisher 14481 | -5/Factory | Identified exit to Upper Caves 14483 | -5/Factory | Entered Upper Caves 14484 | -5/Upper Caves | Identified exit to Upper Caves 14496 | -5/Upper Caves | Destroyed 10 combat bots 14716 | -5/Upper Caves | Learned Factory trap positions 14818 | -5/Upper Caves | Destroyed 7 combat bots 14844 | -5/Upper Caves | Learned Extension trap positions 14844 | -5/Upper Caves | Learned Armory stockpile data 14844 | -5/Upper Caves | Learned Research security intel 14844 | -5/Upper Caves | Learned Armory security intel 14892 | -5/Upper Caves | Entered another Upper Caves area 14893 | -5/Upper Caves | Identified exit to Zhirov 15168 | -5/Upper Caves | Entered Zhirov 15170 | -5/Zhirov | Discovered new exit (range 3) 15198 | -5/Zhirov | Met Zhirov 15227 | -5/Zhirov | Learned location of Command (-1) 15243 | -5/Zhirov | Zhirov requested help retrieving the SGEMP Prototype 15268 | -5/Zhirov | Found Alien Artifact 15268 | -5/Zhirov | Identified Integrated Dissipator 15268 | -5/Zhirov | Installed Integrated Dissipator, increased core heat dissipation (+20) 15297 | -5/Zhirov | Found Alien Artifact 15474 | -5/Zhirov | Identified exit to Proximity Caves 15476 | -5/Zhirov | Entered Proximity Caves 15477 | -4/Proximity Caves | Identified exit to Factory 15807 | -4/Proximity Caves | Found Alien Artifact 15848 | -4/Proximity Caves | Build established: Scavenger-Mutant 16083 | -4/Proximity Caves | Entered Factory 16083 | -4/Factory | Evolved 2 slots: Power x1, Propulsion x1 16084 | -4/Factory | Identified exit to Research 16085 | -4/Factory | Loaded intel: 100 trap records 16553 | -4/Factory | System corruption reached 10% 16614 | -4/Factory | Lost 9 parts (2p2n2u3w) 16618 | -4/Factory | Destroyed 7 combat bots 16689 | -4/Factory | Lost 4 parts (3n1u) 16929 | -4/Factory | Entered Research 16929 | -3/Research | Evolved 2 slots: Power x1, Utility x1 16930 | -3/Research | Identified exit to Testing 17129 | -3/Research | Revision forces began assault on 0b10 17168 | -3/Research | Met up with Revision 17++ 17262 | -3/Research | Discovered exit to Testing (range 6) 17294 | -3/Research | Discovered new exit (range 12) 17375 | -3/Research | Identified exit to Research 17531 | -3/Research | Spotted B-86 Titan 17629 | -3/Research | Research terminal network offline 17784 | -3/Research | Lost 5 allies 17796 | -3/Research | Entered Testing 17827 | -3/Testing | Found Prototype Device 17827 | -3/Testing | Identified 2N-1CE's Frost Array 17895 | -3/Testing | Found Prototype Energy Gun 17895 | -3/Testing | Identified Hyp. EM Gauss Rifle 18176 | -3/Testing | Found Prototype Device 18176 | -3/Testing | Identified System Purifier 18308 | -3/Testing | System corruption reached 10% 18333 | -3/Testing | Found Corrupted Quantum Capacitor 18339 | -3/Testing | Found Corrupted Quantum Capacitor 18346 | -3/Testing | Lost 3 parts (1p1n1w) 18462 | -3/Testing | Build established: Hacker-Mutant 18765 | -3/Testing | Found Prototype Energy Cannon 18765 | -3/Testing | Identified Imp. Potential Cannon 18780 | -3/Testing | Found Prototype Energy Cannon 18780 | -3/Testing | Identified Potential Cannon 18965 | -3/Testing | Discovered exit to Research (range 8) 18983 | -3/Testing | Garrison activated, responded to threat 19056 | -3/Testing | Found Quantum Capacitor 19125 | -3/Testing | Found Prototype Device 19125 | -3/Testing | Identified AEGIS Remote Shield 19188 | -3/Testing | Watched by a mysterious "MATRIX" hacker 19197 | -3/Testing | Build established: Scavenger-Mutant 19546 | -3/Testing | First assault squad dispatched 19676 | -3/Testing | Lost 3 parts (2n1w) 19732 | -3/Testing | Found Prototype Energy Cannon 19732 | -3/Testing | Identified Cld. Nova Cannon 19852 | -3/Testing | Entered Research 19852 | -2/Research | Evolved 2 slots: Utility x2 19853 | -2/Research | Identified exit to Access 20147 | -2/Research | Found Quantum Capacitor 20299 | -2/Research | Spotted B-90 Cyclops 20416 | -2/Research | Discovered new exit (range 15) 20444 | -2/Research | System corruption reached 10% 20495 | -2/Research | Spotted B-90 Cyclops 20496 | -2/Research | Identified exit to Quarantine 20498 | -2/Research | Entered Quarantine 20804 | -2/Quarantine | Cryocooling Duct disabled 20818 | -2/Quarantine | Cryocooling Duct disabled 20819 | -2/Quarantine | Ambient heat levels rising (+20) 20819 | -2/Quarantine | Non-combat units ordered to evacuate 20820 | -2/Quarantine | Cryocooling Duct disabled 20833 | -2/Quarantine | Ambient heat levels rising (+20) 20833 | -2/Quarantine | Combat units ordered to evacuate 20835 | -2/Quarantine | Ambient heat levels rising (+20) 20933 | -2/Quarantine | Quarantine Guard activated 20947 | -2/Quarantine | Found Alien Artifact 20977 | -2/Quarantine | Spotted Quarantine Guard 20998 | -2/Quarantine | Destroyed Quarantine Guard 21037 | -2/Quarantine | Spotted Quarantine Guard 21089 | -2/Quarantine | Found Prototype Device 21089 | -2/Quarantine | Identified Exp. Shield Generator 21124 | -2/Quarantine | Spotted Quarantine Guard 21131 | -2/Quarantine | Destroyed Quarantine Guard 21213 | -2/Quarantine | Identified Subatomic Replicator 21213 | -2/Quarantine | Used Subatomic Replicator to create Alien Artifact 21325 | -2/Quarantine | Found Prototype Device 21329 | -2/Quarantine | Identified Exp. EM Shield 21420 | -2/Quarantine | Found Alien Artifact 21420 | -2/Quarantine | Identified Phase Redirector 21445 | -2/Quarantine | Build established: Mutant 21554 | -2/Quarantine | Spotted Quarantine Guard 21562 | -2/Quarantine | Destroyed Quarantine Guard 21606 | -2/Quarantine | Spotted Quarantine Guard 21609 | -2/Quarantine | Destroyed Quarantine Guard 21685 | -2/Quarantine | Found Alien Reactor 21798 | -2/Quarantine | Build established: Skirmisher 21917 | -2/Quarantine | Spotted Quarantine Guard 21923 | -2/Quarantine | Destroyed Quarantine Guard 21994 | -2/Quarantine | Spotted Quarantine Guard 22002 | -2/Quarantine | Destroyed Quarantine Guard 22129 | -2/Quarantine | Discovered exit to Access (range 17) 22132 | -2/Quarantine | Spotted Quarantine Guard 22134 | -2/Quarantine | Spotted Quarantine Guard 22159 | -2/Quarantine | Destroyed Quarantine Guard 22172 | -2/Quarantine | Destroyed Quarantine Guard 22774 | -2/Quarantine | Spotted Fortress 22778 | -2/Quarantine | Destroyed Fortress 22794 | -2/Quarantine | Found Prototype Device 22794 | -2/Quarantine | Identified Thermal Barrier 22817 | -2/Quarantine | Found Unknown Protection 22817 | -2/Quarantine | Identified Hvy. Insulated Plating 22829 | -2/Quarantine | Found Prototype Reactor 22829 | -2/Quarantine | Identified Vortex Chain Reactor 22945 | -2/Quarantine | Discovered new exit (range 5) 22945 | -2/Quarantine | Spotted Quarantine Guard 22950 | -2/Quarantine | Discovered new exit (range 8) 22950 | -2/Quarantine | Spotted Quarantine Guard 22951 | -2/Quarantine | Destroyed Quarantine Guard 22956 | -2/Quarantine | Destroyed Quarantine Guard 22974 | -2/Quarantine | Identified exit to Protoforge 22977 | -2/Quarantine | Entered Protoforge 23012 | -2/Protoforge | Central database locked down 23514 | -2/Protoforge | Crushed by falling debris 23522 | -2/Protoforge | Superfortress began startup sequence 23539 | -2/Protoforge | System corruption reached 30% 23545 | -2/Protoforge | Lost 3 parts (3u) 23582 | -2/Protoforge | Destroyed 7 combat bots 23683 | -2/Protoforge | Identified Matter Drive 23687 | -2/Protoforge | Crushed by falling debris 23692 | -2/Protoforge | Additional patrols dispatched to research labs 23714 | -2/Protoforge | Scanned by Researcher 23849 | -2/Protoforge | Build established: Scavenger-Mutant 23856 | -2/Protoforge | Spotted EXE-6 23859 | -2/Protoforge | Spotted EXE-6 23880 | -2/Protoforge | Destroyed EXE-6 23896 | -2/Protoforge | Destroyed EXE-6 23897 | -2/Protoforge | Spotted Decapitator 23914 | -2/Protoforge | Destroyed Decapitator 23929 | -2/Protoforge | Lost 4 parts (1p1n1u1w) 23954 | -2/Protoforge | Identified Dimensional Node Initializer 23958 | -2/Protoforge | Found Dimensional Node Initializer 23964 | -2/Protoforge | Initialized slip node 24111 | -2/Protoforge | Lost 3 parts (1p2u) 24240 | -2/Protoforge | Core integrity fell below 50% 24251 | -2/Protoforge | Released all parts (9) 24269 | -2/Protoforge | Destroyed 7 combat bots 24281 | -2/Protoforge | Lost 7 parts (1p4n2u) 24291 | -2/Protoforge | Spotted Overlord 24292 | -2/Protoforge | Spotted EXE-6 24292 | -2/Protoforge | Spotted EXE-6 24293 | -2/Protoforge | Spotted AP7-3 24293 | -2/Protoforge | Spotted AP7-3 24295 | -2/Protoforge | Spotted Decapitator 24297 | -2/Protoforge | Core integrity fell below 20% 24298 | -2/Protoforge | Destroyed by AP7-3 with Enhanced Gamma Rifle Last Messages --------------- 24251_ Released Com. Particle Reactor. 24251_ Released Adv. Sensor Array. 24251_ Released Exp. Power Amplifier. 24251_ Released Adv. Signal Interpreter. 24251_ Released Huge Storage Unit. 24251_ Released Graphene Brace. 24251_ Released Adv. Coolant Injector. 24251_ Released Imp. Potential Cannon. 24251_ Released Cld. Antimatter Reactor. 24264_ System corrupted: Matter fused (-5). 24275_ K-01 Serf cleans the Machine. 24280_ System corrupted: Component data lost. 24280_ K-01 Serf cleans the Machine. 24291_ ALERT: Suspicious intruders detected, dispatching Cutter reinforcements to area. 24293_ Critical hit (Burn: +37). 24294_ AP7-3 knocked back. 24295_ Acquired 3 matter. 24297_ System corrupted: IFF burst signal emitted. Map ----- +----------------------------------------------------+ | ????????????????????????????????# "" " "" | | ????????????????????????????????# "" " " | | ????????????????????????????????# "" " " | | ????????????????????????????????# " " | | ????????????????????????????????# "" " | | ????????????????????????????????# """ " " " | | ????????????????????????????????# " "" " | | ????????????????????????????????# """ " " | | ????????????????????????????????# " """ """"" " " | | ????????????????????????????????# "" " ? | | ????????????????????????????????# " ? | | ????????????????????????????????# ? | | ????????????????????????????????# """"""" "" ? | | ????????????????????????????????# """ " " ? | | ????????????????????????????????# " " ? | | ????????????????????????????????# "" ? | | ????????????????????????????????# "" "" ""? | | ????????????????????????????????# "" "" "? | | ????????????????????????????????# "" """ ? | | ????????????????????????????????# " " ? | | ????????????????????????????????# " "?? | | ????????????????????????????????# " " """ "?? | | ????????????????????????????????# " """ ? | | ??????????????????# ????????###?# "" "?? | | ??????????????##### ####### ### " " "????? | | ?????????? u @ 7c / g ? | | ?????????? p p / "" " " ? | | ?????????? % H/ "" "?? " ?? | | ???????????#########+########7### " ""???? | | ????????????????????????????###?# "" "" " ??? | | ????????????????????????????????# "? ??? | | ????????????????????????????????# ?"" ??? | | ????????????????????????????????# " ""???? | | ????????????????????????????????? "" ""???? | | ????????????????????????????????? """ "?????? | | ?????????????????????????????????####### ##?????? | | ????????????????????????????????????????###??????? | | ?????????????????????????????????????????????????? | | ?????????????????????????????????????????????????? | | ?????????????????????????????????????????????????? | | ?????????????????????????????????????????????????? | | ?????????????????????????????????????????????????? | | ?????????????????????????????????????????????????? | | ?????????????????????????????????????????????????? | | ?????????????????????????????????????????????????? | | ?????????????????????????????????????????????????? | | ?????????????????????????????????????????????????? | | ?????????????????????????????????????????????????? | | ?????????????????????????????????????????????????? | | ?????????????????????????????????????????????????? | +----------------------------------------------------+ Best States ------------- Heat Dissipation 207 Coolant Potential 100 Energy Generation 105 Energy Capacity 980 Matter Stores 300 Matter Capacity 300 Sight Range 16 Robot Scan Range 16 Terrain Scan Density 10 Power Amplification 40 Base Temperature (-) 200 Armor Coverage 1200 Resistance: KI 25 Resistance: TH 50 Resistance: EM 75 Evasion (%) 75 Targeting Accuracy 6 Recoil Reduction 8 Offensive Hacking 20 Defensive Hacking 12 Authchip Count 2 Item Schematics ----------------- Hacking Suite | -8/Storage | Hacked Imp. Hacking Suite | -6/Factory | Hacked Assault Drone Bay | -5/Zhirov | Free Exp. Heat Sink | -5/Zhirov | Free Exp. Optical Array | -5/Zhirov | Free Imp. Arc Thrower | -5/Zhirov | Free Exp. Flexi-carbon Leg | -2/Quarantine | Archive Hvy. Proton Cannon | -2/Quarantine | Archive Com. Linear Accelerator | -2/Quarantine | Archive Imp. Matter Neutralizer | -2/Quarantine | Archive Hvy. Tesla Rifle | -2/Quarantine | Archive Exp. Terrain Scan Processor | -2/Quarantine | Archive Robot Schematics ------------------ S-43 Plague | -2/Quarantine | Archive R-06 Scavenger | -2/Quarantine | Archive Fabricated ------------ Nothing Repaired ---------- Nothing Studied --------- Lgt. Treads | -9/Materials | Hacked Nuclear Pulse Thruster | -6/Factory | Hacked Adv. Plasma Cannon | -5/Factory | Hacked HERF Cannon | -2/Quarantine | Hacked Gamma Rifle | -2/Protoforge | Hacked Alien Tech Used ----------------- Integrated Dissipator Subatomic Replicator Phase Redirector Matter Drive Dimensional Node Initializer Achievements -------------- Cool Guys Max Potential Challenges ------------ None Game ------ Seed ForceRestorationReplicator Manual? 0 Play Time 04:39:26 Cumulative 302.6 hours Start 2026.08.25 @ 00:34:02 End 2026.08.26 @ 00:45:13 Sessions 3 Manual Loads 0 Difficulty Rogue Special Mode None Game No. 285 Rogue 231 Adventurer 54 Explorer 0 Win Type - Total 12 Types 8/0/1/1/0/0/0/1/0/1 Lore% 77 Gallery% 66 Achievement% 61 Wizard Run 0 Options --------- Layout 1 ASCII 0 Keyboard 0 Movement Mouse Keybinds 1 Fullscreen 2 Font 32/Tamsyn Map View 50x35 Zoom Use 0% Tactical HUD 1 Map Filters NONE Filters NONE Steam 1 RUN: b96837bb-e3a0-48e4-877e-2e162d896f27